[Event "Early-Titled-Tuesday-Blitz-April-16-2024"]
[Site "Chess.com"]
[Date "2024.04.16"]
[Round "3"]
[White "ReinisUz"]
[Black "Alen_Yeremyann"]
[Result "0-1"]
[WhiteElo "2365"]
[BlackElo "2823"]
[TimeControl "180+1"]
[EndTime "8:30:56 PDT"]
[Termination "Alen_Yeremyann won by resignation"]

1. c4 {[%clk 0:03:00.9]} 1... Nf6 {[%clk 0:02:58.7]} 2. Nc3 {[%clk 0:02:59.4]}
2... d5 {[%clk 0:02:57.7]} 3. cxd5 {[%clk 0:02:59.3]} 3... Nxd5 {[%clk 0:02:58]}
4. g3 {[%clk 0:02:59.3]} 4... g6 {[%clk 0:02:57.7]} 5. Bg2 {[%clk 0:02:59]} 5...
c6 {[%clk 0:02:58.3]} 6. Nf3 {[%clk 0:02:50.9]} 6... Bg7 {[%clk 0:02:57.7]} 7.
O-O {[%clk 0:02:51.4]} 7... O-O {[%clk 0:02:57.2]} 8. d4 {[%clk 0:02:49.3]} 8...
Nd7 {[%clk 0:02:55.4]} 9. e4 {[%clk 0:02:49]} 9... Nxc3 {[%clk 0:02:55.4]} 10.
bxc3 {[%clk 0:02:48.8]} 10... Nb6 {[%clk 0:02:56.3]} 11. Re1 {[%clk 0:02:44.7]}
11... Nc4 {[%clk 0:02:54]} 12. Nd2 {[%clk 0:02:38.4]} 12... Nxd2 {[%clk
0:02:50.3]} 13. Bxd2 {[%clk 0:02:39.3]} 13... c5 {[%clk 0:02:48.6]} 14. Be3
{[%clk 0:02:38.4]} 14... cxd4 {[%clk 0:02:45.1]} 15. cxd4 {[%clk 0:02:36.2]}
15... Bd7 {[%clk 0:02:43.7]} 16. Rb1 {[%clk 0:02:34.5]} 16... b6 {[%clk
0:02:39.7]} 17. Qd2 {[%clk 0:02:30.5]} 17... Rc8 {[%clk 0:02:37.7]} 18. Rec1
{[%clk 0:02:29.3]} 18... h5 {[%clk 0:02:34.3]} 19. Bh6 {[%clk 0:02:23.9]} 19...
e6 {[%clk 0:02:14.7]} 20. Bxg7 {[%clk 0:02:19]} 20... Kxg7 {[%clk 0:02:12.3]}
21. Rxc8 {[%clk 0:02:18.8]} 21... Bxc8 {[%clk 0:02:10.7]} 22. Rc1 {[%clk
0:02:17.3]} 22... Bb7 {[%clk 0:02:09.3]} 23. d5 {[%clk 0:02:16]} 23... exd5
{[%clk 0:02:08.6]} 24. exd5 {[%clk 0:02:16.9]} 24... Qd6 {[%clk 0:02:08.7]} 25.
Qc3+ {[%clk 0:02:11.2]} 25... Kg8 {[%clk 0:01:57.5]} 26. Qc7 {[%clk 0:02:09.3]}
26... Qxc7 {[%clk 0:01:35.3]} 27. Rxc7 {[%clk 0:02:10.2]} 27... Rb8 {[%clk
0:01:34.7]} 28. f4 {[%clk 0:01:43.8]} 28... a5 {[%clk 0:01:27.4]} 29. Kf2 {[%clk
0:01:43.8]} 29... b5 {[%clk 0:01:27.4]} 30. Ke3 {[%clk 0:01:42.2]} 30... b4
{[%clk 0:01:28]} 31. Kd4 {[%clk 0:01:40.6]} 31... a4 {[%clk 0:01:28.6]} 32. Rc4
{[%clk 0:01:15.1]} 32... Ba6 {[%clk 0:00:41.7]} 33. Rc6 {[%clk 0:01:11.2]} 33...
Bb5 {[%clk 0:00:39.6]} 34. Rc7 {[%clk 0:01:11.2]} 34... b3 {[%clk 0:00:35.9]}
35. axb3 {[%clk 0:01:10.1]} 35... axb3 {[%clk 0:00:36.3]} 36. Be4 {[%clk
0:00:54.6]} 36... b2 {[%clk 0:00:36.5]} 37. d6 {[%clk 0:00:54.6]} 37... Ra8
{[%clk 0:00:35.2]} 38. Kc3 {[%clk 0:00:43.3]} 38... Rd8 {[%clk 0:00:29.8]} 39.
Rb7 {[%clk 0:00:35]} 39... Ba4 {[%clk 0:00:06.7]} 40. Rb4 {[%clk 0:00:25.3]}
40... Be8 {[%clk 0:00:06.4]} 41. Rb6 {[%clk 0:00:24.9]} 41... Kg7 {[%clk
0:00:05.6]} 42. Kxb2 {[%clk 0:00:25]} 42... Bd7 {[%clk 0:00:06.5]} 43. Kc3
{[%clk 0:00:24.6]} 43... Kf6 {[%clk 0:00:07.4]} 44. Kd4 {[%clk 0:00:24.6]} 44...
Be6 {[%clk 0:00:07.3]} 45. Kc5 {[%clk 0:00:20.4]} 45... h4 {[%clk 0:00:08]} 46.
Rb7 {[%clk 0:00:17.8]} 46... Rc8+ {[%clk 0:00:08]} 47. Rc7 {[%clk 0:00:17.2]}
47... Rd8 {[%clk 0:00:08.8]} 48. Bb7 {[%clk 0:00:16.4]} 48... hxg3 {[%clk
0:00:09.5]} 49. hxg3 {[%clk 0:00:16.4]} 49... g5 {[%clk 0:00:07.7]} 50. Bc6
{[%clk 0:00:16.2]} 50... gxf4 {[%clk 0:00:07.4]} 51. gxf4 {[%clk 0:00:16.3]}
51... Kf5 {[%clk 0:00:08.3]} 52. Bd5 {[%clk 0:00:15.6]} 52... Bd7 {[%clk
0:00:03.7]} 53. Bxf7 {[%clk 0:00:13.9]} 53... Kxf4 {[%clk 0:00:04.4]} 54. Bd5
{[%clk 0:00:14.3]} 54... Ke5 {[%clk 0:00:05]} 55. Bc6 {[%clk 0:00:14.2]} 55...
Be6 {[%clk 0:00:05.7]} 56. d7 {[%clk 0:00:11.7]} 56... Bxd7 {[%clk 0:00:05.7]}
57. Bxd7 {[%clk 0:00:11.2]} 57... Kf4 {[%clk 0:00:05.7]} 58. Bc6 {[%clk
0:00:11.5]} 58... Ke5 {[%clk 0:00:06.3]} 59. Re7+ {[%clk 0:00:11.4]} 59... Kf6
{[%clk 0:00:07]} 60. Re2 {[%clk 0:00:11.6]} 60... Rd1 {[%clk 0:00:07.4]} 61. Bd5
{[%clk 0:00:11]} 61... Kf5 {[%clk 0:00:07.7]} 62. Kd6 {[%clk 0:00:11.1]} 62...
Kf4 {[%clk 0:00:08.5]} 63. Re4+ {[%clk 0:00:10.6]} 63... Kf5 {[%clk 0:00:08.8]}
64. Re3 {[%clk 0:00:11]} 64... Rd4 {[%clk 0:00:08.9]} 65. Rf3+ {[%clk
0:00:11.2]} 65... Rf4 {[%clk 0:00:09.6]} 66. Re3 {[%clk 0:00:10.3]} 66... Rd4
{[%clk 0:00:10]} 67. Re5+ {[%clk 0:00:10.1]} 67... Kf6 {[%clk 0:00:10.1]} 68.
Rh5 {[%clk 0:00:09.1]} 68... Kg6 {[%clk 0:00:09.9]} 69. Rh2 {[%clk 0:00:08.1]}
69... Rd1 {[%clk 0:00:09.2]} 70. Rf2 {[%clk 0:00:07.9]} 70... Rd2 {[%clk
0:00:08.7]} 71. Ke5 {[%clk 0:00:07.9]} 71... Rxf2 {[%clk 0:00:08.6]} 72. Be4+
{[%clk 0:00:07.2]} 72... Kg5 {[%clk 0:00:09.5]} 73. Bd5 {[%clk 0:00:06.8]} 73...
Re2+ {[%clk 0:00:10.1]} 74. Kd4 {[%clk 0:00:07.2]} 74... Kf4 {[%clk 0:00:10]}
75. Kc3 {[%clk 0:00:05.9]} 75... Re7 {[%clk 0:00:10]} 76. Bg8 {[%clk 0:00:05.6]}
76... Ke3 {[%clk 0:00:10.1]} 77. Kb2 {[%clk 0:00:05.5]} 77... Rc7 {[%clk
0:00:11]} 78. Ka1 {[%clk 0:00:05.6]} 78... Kd2 {[%clk 0:00:11.7]} 79. Be6 {[%clk
0:00:05.9]} 79... Kc1 {[%clk 0:00:12.1]} 80. Bg8 {[%clk 0:00:04.9]} 80... Rg7
{[%clk 0:00:12]} 81. Be6 {[%clk 0:00:03.9]} 81... Rg3 {[%clk 0:00:12.3]} 82. Bf7
{[%clk 0:00:03.6]} 82... Kd2 {[%clk 0:00:11.3]} 83. Be6 {[%clk 0:00:02.6]} 83...
Kc3 {[%clk 0:00:12]} 84. Bf7 {[%clk 0:00:02.9]} 84... Kb4 {[%clk 0:00:12.8]} 85.
Be6 {[%clk 0:00:03.3]} 85... Re3 {[%clk 0:00:12.8]} 86. Bf5 {[%clk 0:00:03.4]}
86... Ka3 {[%clk 0:00:13]} 87. Bh7 {[%clk 0:00:03.5]} 87... Rg3 {[%clk
0:00:13.1]} 88. Bf5 {[%clk 0:00:03.6]} 88... Rg5 {[%clk 0:00:13.1]} 89. Bh7
{[%clk 0:00:04]} 89... Ra5 {[%clk 0:00:13]} 90. Bg6 {[%clk 0:00:04.2]} 90... Ra6
{[%clk 0:00:12.7]} 91. Kb1 {[%clk 0:00:04.5]} 91... Rxg6 {[%clk 0:00:12.3]} 0-1

[Event "Early-Titled-Tuesday-Blitz-April-16-2024"]
[Site "Chess.com"]
[Date "2024.04.16"]
[Round "4"]
[White "biostatistician"]
[Black "Tol_Tol"]
[Result "1-0"]
[WhiteElo "2621"]
[BlackElo "2424"]
[TimeControl "180+1"]
[EndTime "8:34:12 PDT"]
[Termination "biostatistician won by resignation"]

1. d4 {[%clk 0:02:59.1]} 1... Nf6 {[%clk 0:02:59.8]} 2. Nf3 {[%clk 0:03:00]}
2... g6 {[%clk 0:03:00.2]} 3. c4 {[%clk 0:02:58.2]} 3... Bg7 {[%clk 0:03:00.6]}
4. Nc3 {[%clk 0:02:59.1]} 4... O-O {[%clk 0:03:01.5]} 5. e4 {[%clk 0:02:59.4]}
5... d6 {[%clk 0:03:02.2]} 6. Be2 {[%clk 0:03:00]} 6... e5 {[%clk 0:03:02.9]} 7.
dxe5 {[%clk 0:03:00.9]} 7... dxe5 {[%clk 0:03:03.1]} 8. Qxd8 {[%clk 0:03:01.8]}
8... Rxd8 {[%clk 0:03:03.8]} 9. Bg5 {[%clk 0:03:02.4]} 9... Re8 {[%clk
0:03:04.4]} 10. Nd5 {[%clk 0:03:02.8]} 10... Nxd5 {[%clk 0:03:04.5]} 11. cxd5
{[%clk 0:03:03.7]} 11... c6 {[%clk 0:03:05.4]} 12. Bc4 {[%clk 0:03:03.8]} 12...
b5 {[%clk 0:03:05.9]} 13. Bb3 {[%clk 0:03:03.8]} 13... a5 {[%clk 0:03:06.8]} 14.
a3 {[%clk 0:03:01.9]} 14... a4 {[%clk 0:03:05.6]} 15. Ba2 {[%clk 0:03:01.9]}
15... c5 {[%clk 0:03:06.2]} 16. Rc1 {[%clk 0:02:41.5]} 16... c4 {[%clk
0:03:05.7]} 17. Bb1 {[%clk 0:02:41.7]} 17... Bg4 {[%clk 0:03:01.8]} 18. Nd2
{[%clk 0:02:38.6]} 18... Nd7 {[%clk 0:03:01.2]} 19. f3 {[%clk 0:02:38.6]} 19...
Nc5 {[%clk 0:02:55.9]} 20. fxg4 {[%clk 0:02:37.1]} 20... Nd3+ {[%clk 0:02:56]}
21. Bxd3 {[%clk 0:02:36.6]} 21... cxd3 {[%clk 0:02:56.3]} 22. Rc3 {[%clk
0:02:33.8]} 22... Rad8 {[%clk 0:02:46.4]} 23. Rxd3 {[%clk 0:02:32.9]} 1-0

[Event "Early-Titled-Tuesday-Blitz-April-16-2024"]
[Site "Chess.com"]
[Date "2024.04.16"]
[Round "4"]
[White "knightinshiningarmour16"]
[Black "Trendle"]
[Result "1-0"]
[WhiteElo "2344"]
[BlackElo "2608"]
[TimeControl "180+1"]
[EndTime "8:34:56 PDT"]
[Termination "knightinshiningarmour16 won by resignation"]

1. d4 {[%clk 0:02:58.6]} 1... d6 {[%clk 0:02:57.7]} 2. Nf3 {[%clk 0:02:57.5]}
2... f5 {[%clk 0:02:56.8]} 3. Bg5 {[%clk 0:02:57]} 3... Nd7 {[%clk 0:02:55.2]}
4. e3 {[%clk 0:02:54.5]} 4... Ngf6 {[%clk 0:02:55.1]} 5. c4 {[%clk 0:02:53.5]}
5... g6 {[%clk 0:02:55]} 6. Nc3 {[%clk 0:02:53]} 6... Bg7 {[%clk 0:02:55]} 7.
Bd3 {[%clk 0:02:52.8]} 7... O-O {[%clk 0:02:54.3]} 8. Qc2 {[%clk 0:02:52.9]}
8... c6 {[%clk 0:02:46.1]} 9. e4 {[%clk 0:02:39.8]} 9... fxe4 {[%clk 0:02:45]}
10. Nxe4 {[%clk 0:02:40.7]} 10... Nxe4 {[%clk 0:02:44.2]} 11. Bxe4 {[%clk
0:02:41.6]} 11... Nf6 {[%clk 0:02:43.2]} 12. Bd3 {[%clk 0:02:40.4]} 12... Bg4
{[%clk 0:02:42]} 13. Nd2 {[%clk 0:02:31.5]} 13... Qa5 {[%clk 0:02:35.8]} 14. Be3
{[%clk 0:02:26]} 14... e5 {[%clk 0:02:24.7]} 15. dxe5 {[%clk 0:02:20]} 15...
Qxe5 {[%clk 0:02:25.6]} 16. h3 {[%clk 0:02:07.8]} 16... Qf5 {[%clk 0:02:16.5]}
17. Bxf5 {[%clk 0:02:06]} 1-0

[Event "Early-Titled-Tuesday-Blitz-April-16-2024"]
[Site "Chess.com"]
[Date "2024.04.16"]
[Round "4"]
[White "AlainBruxelles"]
[Black "guillembaches"]
[Result "0-1"]
[WhiteElo "2344"]
[BlackElo "2543"]
[TimeControl "180+1"]
[EndTime "8:34:58 PDT"]
[Termination "guillembaches won by resignation"]

1. e4 {[%clk 0:02:57.5]} 1... c5 {[%clk 0:02:59.9]} 2. Nf3 {[%clk 0:02:56.9]}
2... d6 {[%clk 0:03:00.5]} 3. Nc3 {[%clk 0:02:52.6]} 3... Nf6 {[%clk 0:03:00.1]}
4. d4 {[%clk 0:02:52.3]} 4... cxd4 {[%clk 0:03:01]} 5. Nxd4 {[%clk 0:02:52.6]}
5... Nc6 {[%clk 0:03:01.4]} 6. Be3 {[%clk 0:02:49.3]} 6... Ng4 {[%clk
0:03:00.9]} 7. Bg5 {[%clk 0:02:45.7]} 7... Qb6 {[%clk 0:03:00.9]} 8. Nce2 {[%clk
0:02:16.1]} 8... e5 {[%clk 0:02:53.2]} 9. h3 {[%clk 0:02:12.5]} 9... Nxf2 {[%clk
0:02:49.3]} 10. Kxf2 {[%clk 0:02:12.1]} 10... exd4 {[%clk 0:02:48.1]} 11. b3
{[%clk 0:01:58.1]} 11... d3+ {[%clk 0:02:40.8]} 12. Be3 {[%clk 0:01:57.7]} 12...
dxe2 {[%clk 0:02:39.6]} 13. Bxe2 {[%clk 0:01:52.3]} 13... Qb4 {[%clk 0:02:30.3]}
14. c4 {[%clk 0:01:49.8]} 14... Be7 {[%clk 0:02:26.2]} 0-1

[Event "Early-Titled-Tuesday-Blitz-April-16-2024"]
[Site "Chess.com"]
[Date "2024.04.16"]
[Round "4"]
[White "Seochesspie"]
[Black "LiemLe"]
[Result "0-1"]
[WhiteElo "2864"]
[BlackElo "3051"]
[TimeControl "180+1"]
[EndTime "8:36:13 PDT"]
[Termination "LiemLe won by resignation"]

1. Nf3 {[%clk 0:03:00.9]} 1... Nf6 {[%clk 0:02:59.8]} 2. c4 {[%clk 0:03:01]}
2... g6 {[%clk 0:03:00.2]} 3. d4 {[%clk 0:02:59.9]} 3... Bg7 {[%clk 0:03:00.3]}
4. Nc3 {[%clk 0:03:00.4]} 4... d5 {[%clk 0:03:00.9]} 5. Bg5 {[%clk 0:02:57.4]}
5... Ne4 {[%clk 0:02:57.9]} 6. Bf4 {[%clk 0:02:57.7]} 6... Nxc3 {[%clk
0:02:55.7]} 7. bxc3 {[%clk 0:02:58.6]} 7... dxc4 {[%clk 0:02:48.9]} 8. e3 {[%clk
0:02:58]} 8... Be6 {[%clk 0:02:47.3]} 9. Ng5 {[%clk 0:02:43.1]} 9... Bd5 {[%clk
0:02:44.1]} 10. e4 {[%clk 0:02:25.2]} 10... h6 {[%clk 0:02:43.5]} 11. exd5
{[%clk 0:02:25.3]} 11... hxg5 {[%clk 0:02:44]} 12. Qa4+ {[%clk 0:02:23.4]} 12...
Kf8 {[%clk 0:02:27.2]} 13. Bxg5 {[%clk 0:02:15.6]} 13... Qxd5 {[%clk 0:02:26.8]}
14. Be3 {[%clk 0:02:09.8]} 14... b5 {[%clk 0:02:26.4]} 15. Qa5 {[%clk
0:02:09.7]} 15... Nc6 {[%clk 0:02:17.4]} 16. Qxc7 {[%clk 0:02:08.9]} 16... b4
{[%clk 0:02:17.8]} 17. cxb4 {[%clk 0:02:00]} 17... Bxd4 {[%clk 0:02:13.5]} 18.
Rd1 {[%clk 0:01:32.8]} 18... Bc3+ {[%clk 0:02:10.3]} 19. Ke2 {[%clk 0:01:32.8]}
19... Nd4+ {[%clk 0:02:03.4]} 20. Bxd4 {[%clk 0:01:31.5]} 20... Bxd4 {[%clk
0:02:04.3]} 21. Qf4 {[%clk 0:01:31.8]} 21... Rd8 {[%clk 0:01:58]} 22. h4 {[%clk
0:01:27.2]} 22... c3 {[%clk 0:01:55.3]} 23. Rd3 {[%clk 0:01:25.1]} 23... Qxa2+
{[%clk 0:01:54.6]} 24. Kf3 {[%clk 0:01:25.4]} 24... Qxf2+ {[%clk 0:01:54.2]} 0-1

[Event "Early-Titled-Tuesday-Blitz-April-16-2024"]
[Site "Chess.com"]
[Date "2024.04.16"]
[Round "4"]
[White "YouJustFoundYourGodfather"]
[Black "Kobalia"]
[Result "0-1"]
[WhiteElo "2565"]
[BlackElo "2811"]
[TimeControl "180+1"]
[EndTime "8:36:28 PDT"]
[Termination "Kobalia won by resignation"]

1. d4 {[%clk 0:02:53.4]} 1... d6 {[%clk 0:03:00.2]} 2. Nf3 {[%clk 0:02:53]} 2...
g6 {[%clk 0:02:59.3]} 3. e4 {[%clk 0:02:43.9]} 3... Bg7 {[%clk 0:02:59.1]} 4.
Bc4 {[%clk 0:02:44]} 4... a6 {[%clk 0:02:58.7]} 5. a4 {[%clk 0:02:42.5]} 5... e6
{[%clk 0:02:58.5]} 6. Qe2 {[%clk 0:02:41.5]} 6... Nd7 {[%clk 0:02:57.9]} 7. c3
{[%clk 0:02:38.8]} 7... b6 {[%clk 0:02:57.5]} 8. Bg5 {[%clk 0:02:38.5]} 8... Ne7
{[%clk 0:02:56.6]} 9. Nbd2 {[%clk 0:02:39.1]} 9... h6 {[%clk 0:02:56.1]} 10. Be3
{[%clk 0:02:39.3]} 10... Bb7 {[%clk 0:02:55.3]} 11. O-O {[%clk 0:02:28]} 11...
O-O {[%clk 0:02:54.8]} 12. Rfe1 {[%clk 0:02:24]} 12... d5 {[%clk 0:02:54.2]} 13.
exd5 {[%clk 0:02:21.4]} 13... Nxd5 {[%clk 0:02:53.8]} 14. Nf1 {[%clk 0:02:18.2]}
14... c5 {[%clk 0:02:53.8]} 15. dxc5 {[%clk 0:02:17]} 15... Nxc5 {[%clk
0:02:46.5]} 16. Bxc5 {[%clk 0:02:12.8]} 16... bxc5 {[%clk 0:02:47.4]} 17. Ng3
{[%clk 0:02:04.8]} 17... Qc7 {[%clk 0:02:46.6]} 18. Ne4 {[%clk 0:02:03.2]} 18...
Rfd8 {[%clk 0:02:37]} 19. Rad1 {[%clk 0:01:59.6]} 19... g5 {[%clk 0:02:34.2]}
20. h3 {[%clk 0:01:55.4]} 20... Qc6 {[%clk 0:02:31.3]} 21. Qc2 {[%clk
0:01:51.9]} 21... Nf4 {[%clk 0:02:25.9]} 22. Bf1 {[%clk 0:01:38.9]} 22... Kh8
{[%clk 0:02:04.6]} 23. g3 {[%clk 0:01:36.1]} 23... f5 {[%clk 0:01:59.4]} 24.
Ned2 {[%clk 0:01:19.5]} 24... Rxd2 {[%clk 0:01:56.1]} 0-1

[Event "Early-Titled-Tuesday-Blitz-April-16-2024"]
[Site "Chess.com"]
[Date "2024.04.16"]
[Round "4"]
[White "tetrix83"]
[Black "ploxoi"]
[Result "1-0"]
[WhiteElo "2613"]
[BlackElo "2413"]
[TimeControl "180+1"]
[EndTime "8:37:01 PDT"]
[Termination "tetrix83 won by resignation"]

1. e4 {[%clk 0:03:00.9]} 1... e6 {[%clk 0:02:59.2]} 2. d3 {[%clk 0:02:59.8]}
2... d5 {[%clk 0:03:00.1]} 3. Nd2 {[%clk 0:02:59.6]} 3... c5 {[%clk 0:03:00.4]}
4. Ngf3 {[%clk 0:02:59.7]} 4... Nc6 {[%clk 0:03:01]} 5. g3 {[%clk 0:03:00.1]}
5... Nf6 {[%clk 0:03:01.6]} 6. Bg2 {[%clk 0:02:58.5]} 6... g6 {[%clk 0:03:02.2]}
7. O-O {[%clk 0:02:58.4]} 7... Bg7 {[%clk 0:03:02.9]} 8. Re1 {[%clk 0:02:58.6]}
8... O-O {[%clk 0:03:03.1]} 9. c3 {[%clk 0:02:58.1]} 9... a5 {[%clk 0:03:03.3]}
10. a4 {[%clk 0:02:55.6]} 10... b6 {[%clk 0:03:03]} 11. exd5 {[%clk 0:02:54.6]}
11... exd5 {[%clk 0:03:01.4]} 12. Nb1 {[%clk 0:02:54.7]} 12... Re8 {[%clk
0:02:59.4]} 13. Rxe8+ {[%clk 0:02:52.6]} 13... Qxe8 {[%clk 0:02:59.6]} 14. Na3
{[%clk 0:02:51.8]} 14... Bf5 {[%clk 0:02:54.4]} 15. Nb5 {[%clk 0:02:49.5]} 15...
Qd7 {[%clk 0:02:54.4]} 16. Bf4 {[%clk 0:02:46.9]} 16... Nh5 {[%clk 0:02:46.4]}
17. Bc7 {[%clk 0:02:44.2]} 17... Na7 {[%clk 0:02:13.6]} 18. Nxa7 {[%clk
0:02:28]} 18... Qxc7 {[%clk 0:02:12]} 19. Nb5 {[%clk 0:02:28.2]} 19... Qd7
{[%clk 0:02:11.5]} 20. d4 {[%clk 0:02:14.4]} 20... c4 {[%clk 0:02:04.7]} 21. Ne5
{[%clk 0:02:12.4]} 21... Bxe5 {[%clk 0:01:54.4]} 22. dxe5 {[%clk 0:02:13.3]}
22... Re8 {[%clk 0:01:48.5]} 23. Qxd5 {[%clk 0:02:04.9]} 23... Qxd5 {[%clk
0:01:46.8]} 24. Bxd5 {[%clk 0:02:05]} 24... Rxe5 {[%clk 0:01:43.8]} 25. Bxc4
{[%clk 0:02:05.3]} 25... Bc2 {[%clk 0:01:39.3]} 26. Nd4 {[%clk 0:02:01.4]} 26...
Be4 {[%clk 0:01:38.2]} 27. Re1 {[%clk 0:01:58.9]} 27... Re8 {[%clk 0:01:32.5]}
28. Bb5 {[%clk 0:01:45.4]} 28... Re5 {[%clk 0:01:17.8]} 29. f3 {[%clk
0:01:43.8]} 29... Rxb5 {[%clk 0:01:17.6]} 30. axb5 {[%clk 0:01:40.7]} 30... Bd5
{[%clk 0:01:17.1]} 31. Re8+ {[%clk 0:01:37]} 31... Kg7 {[%clk 0:01:17.6]} 32.
Rb8 {[%clk 0:01:37.1]} 32... Nf6 {[%clk 0:01:18.5]} 33. Rxb6 {[%clk 0:01:36.9]}
33... Nd7 {[%clk 0:01:19.4]} 34. Rd6 {[%clk 0:01:36.3]} 1-0

[Event "Early-Titled-Tuesday-Blitz-April-16-2024"]
[Site "Chess.com"]
[Date "2024.04.16"]
[Round "4"]
[White "NiranjanNavalgund"]
[Black "Kotlyar_K"]
[Result "1/2-1/2"]
[WhiteElo "2500"]
[BlackElo "2686"]
[TimeControl "180+1"]
[EndTime "8:37:09 PDT"]
[Termination "Game drawn by stalemate"]

1. e4 {[%clk 0:03:00.9]} 1... c5 {[%clk 0:02:57.6]} 2. d4 {[%clk 0:03:01.1]}
2... cxd4 {[%clk 0:02:57.6]} 3. c3 {[%clk 0:03:01.3]} 3... dxc3 {[%clk
0:02:06.8]} 4. Nxc3 {[%clk 0:03:00.9]} 4... Nc6 {[%clk 0:02:07.4]} 5. Bc4 {[%clk
0:03:01.2]} 5... d6 {[%clk 0:02:07.9]} 6. Nf3 {[%clk 0:03:01.7]} 6... a6 {[%clk
0:02:07]} 7. O-O {[%clk 0:03:01.3]} 7... Nf6 {[%clk 0:02:05.7]} 8. e5 {[%clk
0:03:01.4]} 8... dxe5 {[%clk 0:02:02.9]} 9. Qxd8+ {[%clk 0:03:00.8]} 9... Nxd8
{[%clk 0:02:03.8]} 10. Nxe5 {[%clk 0:02:59.7]} 10... Be6 {[%clk 0:02:04.5]} 11.
Rd1 {[%clk 0:02:57.2]} 11... Bxc4 {[%clk 0:02:00.6]} 12. Nxc4 {[%clk 0:02:57]}
12... Nc6 {[%clk 0:01:57.2]} 13. Nb6 {[%clk 0:02:57.1]} 13... Rd8 {[%clk
0:01:54]} 14. Rxd8+ {[%clk 0:02:55.3]} 14... Kxd8 {[%clk 0:01:48.1]} 15. Bf4
{[%clk 0:02:55.4]} 15... e5 {[%clk 0:01:46.9]} 16. Rd1+ {[%clk 0:02:56.3]} 16...
Kc7 {[%clk 0:01:39.1]} 17. Ncd5+ {[%clk 0:02:53.3]} 17... Nxd5 {[%clk
0:01:37.4]} 18. Nxd5+ {[%clk 0:02:54.2]} 18... Kb8 {[%clk 0:01:36]} 19. Bg3
{[%clk 0:02:54.3]} 19... Bc5 {[%clk 0:01:34.6]} 20. a3 {[%clk 0:02:53.9]} 20...
Rd8 {[%clk 0:01:34.1]} 21. Kf1 {[%clk 0:02:49.6]} 21... f6 {[%clk 0:01:32.3]}
22. b4 {[%clk 0:02:49.7]} 22... Bd4 {[%clk 0:01:31.7]} 23. Ne3 {[%clk
0:02:43.2]} 23... Bxe3 {[%clk 0:01:31.7]} 24. Rxd8+ {[%clk 0:02:43.5]} 24...
Nxd8 {[%clk 0:01:32]} 25. fxe3 {[%clk 0:02:44.4]} 25... Kc7 {[%clk 0:01:32.5]}
26. Ke2 {[%clk 0:02:44.4]} 26... Kc6 {[%clk 0:01:33]} 27. Kd3 {[%clk 0:02:44.8]}
27... Kb5 {[%clk 0:01:33]} 28. Kc3 {[%clk 0:02:44.4]} 28... Ka4 {[%clk
0:01:27.3]} 29. Kb2 {[%clk 0:02:44.7]} 29... Nc6 {[%clk 0:01:26.5]} 30. Be1
{[%clk 0:02:44.5]} 30... Na7 {[%clk 0:01:26]} 31. e4 {[%clk 0:02:34.9]} 31...
Nb5 {[%clk 0:01:25.6]} 32. Bf2 {[%clk 0:02:35.3]} 32... Nxa3 {[%clk 0:01:24.8]}
33. Bc5 {[%clk 0:02:35.9]} 33... b6 {[%clk 0:01:16.5]} 34. Bf8 {[%clk
0:02:33.4]} 34... g6 {[%clk 0:01:14.8]} 35. Bg7 {[%clk 0:02:32.2]} 35... f5
{[%clk 0:01:15.3]} 36. exf5 {[%clk 0:02:31.1]} 36... gxf5 {[%clk 0:01:16.2]} 37.
Bxe5 {[%clk 0:02:31.3]} 37... Nc4+ {[%clk 0:01:16.1]} 38. Kc3 {[%clk 0:02:30.9]}
38... Nxe5 {[%clk 0:01:16.7]} 39. Kd4 {[%clk 0:02:31]} 39... Nc6+ {[%clk
0:01:15.7]} 40. Ke3 {[%clk 0:02:31.5]} 40... Nxb4 {[%clk 0:01:15.4]} 41. Kf4
{[%clk 0:02:31.8]} 41... Kb3 {[%clk 0:01:14.4]} 42. Kxf5 {[%clk 0:02:32.3]}
42... a5 {[%clk 0:01:13.4]} 43. g4 {[%clk 0:02:33.2]} 43... a4 {[%clk
0:01:13.2]} 44. g5 {[%clk 0:02:33.9]} 44... a3 {[%clk 0:01:13.7]} 45. h4 {[%clk
0:02:34.4]} 45... a2 {[%clk 0:01:13.6]} 46. h5 {[%clk 0:02:35.3]} 46... a1=Q
{[%clk 0:01:13.1]} 47. g6 {[%clk 0:02:36.2]} 47... Qg7 {[%clk 0:01:12.2]} 48.
gxh7 {[%clk 0:02:35.4]} 48... Qxh7+ {[%clk 0:01:12.6]} 49. Kg5 {[%clk
0:02:35.9]} 49... Nc2 {[%clk 0:01:13.2]} 50. Kh4 {[%clk 0:02:35.3]} 50... Nd4
{[%clk 0:01:13.3]} 51. Kg5 {[%clk 0:02:35.9]} 51... Qf7 {[%clk 0:01:11.4]} 52.
Kh6 {[%clk 0:02:36]} 52... Ne6 {[%clk 0:01:12.3]} 1/2-1/2

[Event "Early-Titled-Tuesday-Blitz-April-16-2024"]
[Site "Chess.com"]
[Date "2024.04.16"]
[Round "4"]
[White "Gabrielian_Artur"]
[Black "flawian2008"]
[Result "1-0"]
[WhiteElo "2783"]
[BlackElo "2561"]
[TimeControl "180+1"]
[EndTime "8:37:13 PDT"]
[Termination "Gabrielian_Artur won by checkmate"]

1. e4 {[%clk 0:03:00.9]} 1... c6 {[%clk 0:02:49]} 2. d4 {[%clk 0:03:00.1]} 2...
d5 {[%clk 0:02:49.1]} 3. e5 {[%clk 0:03:00.5]} 3... Bf5 {[%clk 0:02:48.6]} 4. h4
{[%clk 0:03:00.7]} 4... h5 {[%clk 0:02:48.7]} 5. Bd3 {[%clk 0:03:00.6]} 5...
Bxd3 {[%clk 0:02:48]} 6. Qxd3 {[%clk 0:03:01.5]} 6... Qa5+ {[%clk 0:02:48.6]} 7.
Nd2 {[%clk 0:03:01.3]} 7... Qa6 {[%clk 0:02:49]} 8. e6 {[%clk 0:03:01.3]} 8...
Qxd3 {[%clk 0:02:46.2]} 9. exf7+ {[%clk 0:03:00.4]} 9... Kxf7 {[%clk 0:02:46.5]}
10. cxd3 {[%clk 0:03:00.7]} 10... e6 {[%clk 0:02:20.1]} 11. Ndf3 {[%clk
0:02:59.5]} 11... Be7 {[%clk 0:02:12.3]} 12. Nh3 {[%clk 0:02:57.5]} 12... Nh6
{[%clk 0:02:04.1]} 13. Ne5+ {[%clk 0:02:45.3]} 13... Ke8 {[%clk 0:01:35.6]} 14.
Nf4 {[%clk 0:02:41.1]} 14... Nf5 {[%clk 0:01:24.5]} 15. Nxe6 {[%clk 0:02:39.4]}
15... Bd6 {[%clk 0:01:13.7]} 16. Bf4 {[%clk 0:02:33.2]} 16... Ke7 {[%clk
0:01:00.2]} 17. Ng5 {[%clk 0:02:21.4]} 17... Bb4+ {[%clk 0:00:29.2]} 18. Bd2
{[%clk 0:02:03.8]} 18... Bxd2+ {[%clk 0:00:27.5]} 19. Kxd2 {[%clk 0:02:04.1]}
19... Rc8 {[%clk 0:00:23]} 20. Rae1 {[%clk 0:02:01.9]} 20... Kf6 {[%clk
0:00:18.3]} 21. Nd7+ {[%clk 0:01:58.1]} 21... Kg6 {[%clk 0:00:14.6]} 22. Re6#
{[%clk 0:01:57]} 1-0